Departmental family,Entity,Date Paid,Expense type,Expense Area,Supplier,Transaction Number,Amount, Description , Supplier Type ,Expenditure Type
UK Statistics Authority,Office for National Statistics,02-Aug-16,Contractual Service Payments - Non IT,Business Services and Development,All Change Strategic Consulting Limited,80568913,"25,294.50",Information Management Services,SME,Programme
UK Statistics Authority,Office for National Statistics,02-Aug-16,Specialist Contractors IT,Digital Services Technology and Methodology,E Synergy Solutions,80568922,"206,514.00",Information Management Services, SME ,Programme
UK Statistics Authority,Office for National Statistics,02-Aug-16,IT Bureau Services            ,Digital Services Technology and Methodology,Fujitsu Services Ltd,80568925,"101,352.00",Information Management Services, Large ,Programme
UK Statistics Authority,Office for National Statistics,02-Aug-16,IT Bureau Services            ,Digital Services Technology and Methodology,Landmark Information Group,80568927,"112,835.50", Information Management Servces , Large ,Programme
UK Statistics Authority,Office for National Statistics,02-Aug-16,Specialist Contractors IT,Digital Services Technology and Methodology,Methods Digital Ltd,80568929,"107,280.00",Information Management Services, Large ,Programme
UK Statistics Authority,Office for National Statistics,02-Aug-16,FM Contract Payments,Corporate Support,Mitie Facilities Services Ltd,80568930,"107,206.18",Facillities Management Services , Large ,Programme
UK Statistics Authority,Office for National Statistics,02-Aug-16,Miscellaneous Minor Works     ,Business Services and Development,Mitie Facilities Services Ltd,80568930,688.68,Newport Minor Works, Large ,Programme
UK Statistics Authority,Office for National Statistics,02-Aug-16,Statistical Services/Surveys  ,Data Collection,National Centre,80568931,"226,974.56",Statistical Services, Large ,Programme
UK Statistics Authority,Office for National Statistics,02-Aug-16,Contractual Service Payments - Non IT,Census,Pinsent Masons,80568934,"33,222.10",Legal Advice, Large ,Programme
UK Statistics Authority,Office for National Statistics,02-Aug-16,Contractual Service Payments - Non IT,Finance,Pinsent Masons,80568934,"4,431.50",Legal Advice, Large ,Programme
UK Statistics Authority,Office for National Statistics,02-Aug-16,Statistical Services/Surveys  ,Digital Services Technology and Methodology,University of Southampton,80568938,"1,572.00",Statistical Services, SME ,Programme
UK Statistics Authority,Office for National Statistics,02-Aug-16,Statistical Services/Surveys  ,Digital Services Technology and Methodology,University of Southampton,80568938,"38,758.32",Statistical Services, SME ,Programme
UK Statistics Authority,Office for National Statistics,03-Aug-16,Telecomms                     ,Digital Services Technology and Methodology,BT Global Services,80568940,"54,237.90",Information Management Services, Large ,Programme
UK Statistics Authority,Office for National Statistics,03-Aug-16,VAT                           ,Corporate Support,HM Revenue & Customs,80568950,"342,679.06",Quarter 1 VAT Return , Large ,Programme
UK Statistics Authority,Office for National Statistics,03-Aug-16,Specialist Contractors IT,Digital Services Technology and Methodology,RSM Partners Ltd,80568958,"69,300.00",Information Management Servces , SME ,Programme
UK Statistics Authority,Office for National Statistics,03-Aug-16,Specialist Contractors IT,Digital Services Technology and Methodology,Sopra Steria,80568959,"34,816.02",Information Management Services, Large ,Programme
UK Statistics Authority,Office for National Statistics,04-Aug-16,Specialist Contractors Non IT,Business Services and Development,Insight Executive,80569432,"32,424.97",Information Management Services, SME ,Programme
UK Statistics Authority,Office for National Statistics,04-Aug-16,Contractual Service Payments - IT,Digital Services Technology and Methodology,Kainos,80569434,"155,087.20",Information Management Services, Large ,Programme
UK Statistics Authority,Office for National Statistics,04-Aug-16,Capital Major Works >25k      ,Property Newport,Mitie Facilities Services Ltd,80569437,"6,758.40",Newport Cladding  Major Works, Large ,Programme
UK Statistics Authority,Office for National Statistics,04-Aug-16,Capital Major Works >25k      ,Property Newport,Mitie Facilities Services Ltd,80569437,"5,517.60",Newport Office Block Major Works, Large ,Programme
UK Statistics Authority,Office for National Statistics,04-Aug-16,Capital Major Works >25k      ,Property Titchfield,Mitie Facilities Services Ltd,80569437,"6,656.40",Titchfield Stage 4 Major works, Large ,Programme
UK Statistics Authority,Office for National Statistics,04-Aug-16,Major Works Over 25k         ,Property Newport,Mitie Facilities Services Ltd,80569437,"5,342.40",Newport Data Block Major Works, Large ,Programme
UK Statistics Authority,Office for National Statistics,04-Aug-16,Major Works Over 25k         ,Property Newport,Mitie Facilities Services Ltd,80569437,"17,616.00",Newport Data Science Campus, Large ,Programme
UK Statistics Authority,Office for National Statistics,04-Aug-16,Major Works Over 25k         ,Proprty Titchfield,Mitie Facilities Services Ltd,80569437,"7,322.40",Accomodation Planning, Large ,Programme
UK Statistics Authority,Office for National Statistics,04-Aug-16,Travel & Subsistence,Corporate Support,Redfern Travel,80569441,"39,722.75",Travel and Accommodation Booking Service, SME ,Programme
UK Statistics Authority,Office for National Statistics,04-Aug-16,Specialist Contractors IT,Digital Services Technology and Methodology,Sopra Steria,80569443,"28,692.21",Information Management Services, Large ,Programme
UK Statistics Authority,Office for National Statistics,04-Aug-16,Statistical Services/Surveys  ,National Accounts and Economic Statistics,TNS UK Ltd,80569445,"189,031.20",Statistical Services, Large ,Programme
UK Statistics Authority,Office for National Statistics,05-Aug-16,Specialist Contractors IT,Digital Services Technology and Methodology,Certes Computing Ltd,80569450,"36,705.49",Information Management Services, SME ,Programme
UK Statistics Authority,Office for National Statistics,05-Aug-16,IT Software Maintenance       ,Digital Services Technology and Methodology,Comparex UK Ltd,80569452,"381,878.76",Information Management Services, Large ,Programme
UK Statistics Authority,Office for National Statistics,08-Aug-16,Childcare Services,Corporate Support,Computershare Voucher Services,80569790,"28,318.37",Childcare Vouchers, Large ,Programme
UK Statistics Authority,Office for National Statistics,08-Aug-16,Childcare Services,Finance,Computershare Voucher Services,80569790,"2,208.83",Childcare Vouchers, Large ,Programme
UK Statistics Authority,Office for National Statistics,09-Aug-16,Contractual Service Payments - IT,Digital Services Technology and Methodology,Automated Intelligence Ltd,80569924,"32,400.00",Information Management Services, SME ,Programme
UK Statistics Authority,Office for National Statistics,11-Aug-16,Telecomms                     ,Digital Services Technology and Methodology,BT Global Services,80570407,"43,407.65",Information Management Services, Large ,Programme
UK Statistics Authority,Office for National Statistics,11-Aug-16,Travel & Subsistence,Corporate Support,Redfern Travel,80570424,"25,169.21",Travel and Accommodation Booking Service, SME ,Programme
UK Statistics Authority,Office for National Statistics,12-Aug-16,Procurement Card,Corporate Support,Barclays Bank Plc,30000099,"57,171.91",Multiple Procurement Card Purchases, Large ,Programme
UK Statistics Authority,Office for National Statistics,15-Aug-16,Specialist Contractors IT,Digital Services Technology and Methodology,LA International,80570722,"16,171.39",Information Management Services, SME ,Programme
UK Statistics Authority,Office for National Statistics,15-Aug-16,Specialist Contractors Non IT,National Accounts and Economic Statistics,LA International,80570722,"12,144.48",Information Management Services, SME ,Programme
UK Statistics Authority,Office for National Statistics,17-Aug-16,Electricity                   ,Property Titchfield,EDF Energy,30000106,"26,009.17",Electricity charges Titchfield, Large ,Programme
UK Statistics Authority,Office for National Statistics,18-Aug-16,Miscellaneous Minor Works     ,Property London,EDF Energy,30000107,"31,107.62",Electricity charges London, Large ,Programme
UK Statistics Authority,Office for National Statistics,18-Aug-16,Contractual Service Payments - Non IT,Finance,Ernst & Young Llp,80571307,"112,118.34",Information Management Services, Large ,Programme
UK Statistics Authority,Office for National Statistics,19-Aug-16,Consultants Non IT,Social and Analysis,Equiniti Limited,80571316,"36,672.71",Information Management Services, Large ,Programme
UK Statistics Authority,Office for National Statistics,22-Aug-16,Specialist Contractors Non IT,Finance,Certus Solutions Consulting Services Ltd,80571591,"70,725.00",Information Management Services, SME ,Programme
UK Statistics Authority,Office for National Statistics,23-Aug-16,Contractual Service Payments - IT,Digital Services Technology and Methodology,Automated Intelligence Ltd,80571727,"32,400.00",Information Management Services, SME ,Programme
UK Statistics Authority,Office for National Statistics,26-Aug-16,Specialist Contractors IT,Digital Services Technology and Methodology,E Synergy Solutions,80572172,"37,068.00",Information Management Services, SME ,Programme
UK Statistics Authority,Office for National Statistics,31-Aug-16,Telecomms                     ,Digital Services Technology and Methodology,BT Global Services,80572566,"34,584.18",Information Management Services,Large,Programme
UK Statistics Authority,Office for National Statistics,31-Aug-16,Telecomms                     ,Data Collection,BT Global Services,80572567,"2,834.52",Information Management Services,Large,Programme
UK Statistics Authority,Office for National Statistics,31-Aug-16,Telecomms                     ,Digital Services Technology and Methodology,BT Global Services,80572567,"23,167.52",Information Management Services,Large,Programme
UK Statistics Authority,Office for National Statistics,31-Aug-16,Contractual Service Payments - IT,People Solutions,Cabinet Office,80572568,"123,329.87",Civil Service HR Expert Services ,Large,Programme
UK Statistics Authority,Office for National Statistics,31-Aug-16,IT Purchases <2k,Social and Analysis,Comparex UK Ltd,80572571,"34,558.78",Information Management Services,Large,Programme
UK Statistics Authority,Office for National Statistics,31-Aug-16,IT Purchases <2k,Digital Services Technology and Methodology,Computacenter (UK) Limited,80572572,58.76,Information Management Services,Large,Programme
UK Statistics Authority,Office for National Statistics,31-Aug-16,IT Purchases <2k,Digital Services Technology and Methodology,Computacenter (UK) Limited,80572572,523.2,Information Management Services,Large,Programme
UK Statistics Authority,Office for National Statistics,31-Aug-16,IT Purchases >2k,Digital Services Technology and Methodology,Computacenter (UK) Limited,80572572,"154,222.13",Infrastructure Software Assurance ,Large,Programme
UK Statistics Authority,Office for National Statistics,31-Aug-16,Software Pool 4yr,Digital Services Technology and Methodology,Computacenter (UK) Limited,80572572,"13,412.66",Information Management Services,Large,Programme
UK Statistics Authority,Office for National Statistics,31-Aug-16,Consultants Non IT,Social and Analysis,Equiniti Limited,80572575,"36,672.71",Information Management Services,Large,Programme
UK Statistics Authority,Office for National Statistics,31-Aug-16,Specialist Contractors IT,Digital Services Technology and Methodology,Indigoblue,80572579,"7,560.00",Information Management Services,Large,Programme
UK Statistics Authority,Office for National Statistics,31-Aug-16,Specialist Contractors IT,Digital Services Technology and Methodology,Indigoblue,80572579,"62,400.00",Information Management Services,Large,Programme
UK Statistics Authority,Office for National Statistics,31-Aug-16,Specialist Contractors IT,Digital Services Technology and Methodology,Kainos,80572580,"83,277.60",Information Management Services,Large,Programme
UK Statistics Authority,Office for National Statistics,31-Aug-16,Specialist Contractors IT,Digital Services Technology and Methodology,Methods Digital Ltd,80572581,"100,575.00",Information Management Services,Large,Programme
UK Statistics Authority,Office for National Statistics,31-Aug-16,PC Purchases <2k Per Item     ,Digital Services Technology and Methodology,Misco,80572582,"36,543.84",Infrastructure Software Assurance - Data Refresh ,Large,Programme
UK Statistics Authority,Office for National Statistics,31-Aug-16,Contractual Service Payments - Non IT,Census,Pinsent Masons,80572584,"33,085.80",Legal Advice,Large,Programme
UK Statistics Authority,Office for National Statistics,31-Aug-16,Travel & Subsistence,Corporate Support,Redfern Travel,80572585,"33,704.19",Travel and Accommodation Booking Service,SME,Programme
UK Statistics Authority,Office for National Statistics,31-Aug-16,PC Purchases <2k Per Item     ,Digital Services Technology and Methodology,Stone Computers,80572587,"32,141.16", Infrastructure Software Assurance - Data Refresh ,Large,Programme
UK Statistics Authority,Office for National Statistics,31-Aug-16,Postage                       ,Data Collection,UK Mail,80572588,"50,345.84",Outgoing Postage,Large,Programme
UK Statistics Authority,Office for National Statistics,31-Aug-16,Capital Major Works >25k      ,Property Newport,Central Roofing Ltd,80572943,"129,610.00",Newport Major Works Office Block , SME ,Programme
UK Statistics Authority,Office for National Statistics,31-Aug-16,Specialist Contractors IT,Digital Services Technology and Methodology,Indigoblue,80572946,"26,509.56",Information Management Services,Large,Programme
UK Statistics Authority,Office for National Statistics,31-Aug-16,Capital Major Works >25k      ,Property Newport,Mitie Facilities Services Ltd,80572948,"78,977.00",Newport Phase 1 Major Works, Large ,Programme
UK Statistics Authority,Office for National Statistics,31-Aug-16,Capital Major Works >25k      ,Property Newport,Mitie Facilities Services Ltd,80572948,"6,342.22",Newport Office Block Major Works,Large,Programme
UK Statistics Authority,Office for National Statistics,31-Aug-16,Capital Major Works >25k      ,Property Titchfield,Mitie Facilities Services Ltd,80572948,"7,651.21",Titchfield stage 4 Major Works,Large,Programme
UK Statistics Authority,Office for National Statistics,31-Aug-16,FM Contract Payments,Corporate Support,Mitie Facilities Services Ltd,80572948,"431,962.33",Facillities Management Services ,Large,Programme
UK Statistics Authority,Office for National Statistics,31-Aug-16,Major Works Over 25k         ,Property Newport,Mitie Facilities Services Ltd,80572948,"6,140.83",Newport Data Block Major Works,Large,Programme
UK Statistics Authority,Office for National Statistics,31-Aug-16,Major Works Over 25k         ,Property Newport,Mitie Facilities Services Ltd,80572948,"20,248.74",Newport Data Science Campus,Large,Programme
UK Statistics Authority,Office for National Statistics,31-Aug-16,Major Works Over 25k         ,Property Titchfield,Mitie Facilities Services Ltd,80572948,"8,416.75",Accomodation Planning,Large,Programme
UK Statistics Authority,Office for National Statistics,31-Aug-16,Miscellaneous Minor Works     ,Property Newport,Mitie Facilities Services Ltd,80572948,"18,323.18",Feasibility Study for Data Science Campus ,Large,Programme
UK Statistics Authority,Office for National Statistics,31-Aug-16,Major Works Over 25k         ,Property Newport,Paramount Office Interiors Ltd,80572949,"25,782.00",Newport Data Block Major Works,SME,Programme
UK Statistics Authority,Office for National Statistics,31-Aug-16,Agency Staff,Census,Parity Resources Limited,80572950,"3,284.24",Information Management Services, Large ,Programme
UK Statistics Authority,Office for National Statistics,31-Aug-16,Agency Staff,Data Collection,Parity Resources Limited,80572950,"3,228.94",Information Management Services, Large ,Programme
UK Statistics Authority,Office for National Statistics,31-Aug-16,Agency Staff,Social and Analysis,Parity Resources Limited,80572950,"4,058.29",Information Management Services, Large ,Programme
UK Statistics Authority,Office for National Statistics,31-Aug-16,Specialist Contractors IT,Digital Services Technology and Methodology,Parity Resources Limited,80572950,"23,151.46",Information Management Services,Large,Programme
UK Statistics Authority,Office for National Statistics,31-Aug-16,Furniture >2k Per Item        ,National Accounts and Economic Statistics,The Senator Group,80572953,"61,349.09",Newport Minor Works,Large,Programme
UK Statistics Authority,Office for National Statistics,31-Aug-16,Misc Consumables & Equip <2k  ,Business Services and Development,The Senator Group,80572953,"1,814.40",Newport Minor Works,Large,Programme
UK Statistics Authority,Office for National Statistics,31-Aug-16,Misc Consumables & Equip <2k  ,Property Newport,The Senator Group,80572953,468,Newport Minor Works,Large,Programme
UK Statistics Authority,Office for National Statistics,31-Aug-16,Office Furniture,Data Collection,The Senator Group,80572953,"5,747.40",Newport Minor Works,Large,Programme
UK Statistics Authority,Office for National Statistics,31-Aug-16,Office Furniture,Digital Services Technology and Methodology,The Senator Group,80572953,"78,433.13",Newport Minor Works,Large,Programme
UK Statistics Authority,Office for National Statistics,31-Aug-16,Office Furniture,Property Newport,The Senator Group,80572953,672.6,Newport Minor Works,Large,Programme
